{"text_format":"1","workbook":"xlsx","n_sheets":2,"sheets":["Todo Riesgo","Pérdida Total"],"not_rendered":{"charts":0,"images":18,"macros":1,"external_links":2,"defined_names":2,"comments":0,"pivot_tables":0},"unopened":[],"bounds":{"document_bytes":16777216,"sheet_cells":100000,"rows_first":2000,"rows_last":500,"rows_between":2000,"halvings":0,"cell_chars":16384,"cell_head_chars":4096},"cells_cut":0,"cells_raw":0,"read":"whole","date_system":"1900"}

{"sheet":"Todo Riesgo","index":0,"n_rows":300,"n_cols":22,"rows_kept":300,"cut":false,"hidden":false,"merged":[[276,2,276,10],[42,3,42,10],[54,6,54,8],[189,3,189,10],[190,3,190,10],[55,19,55,21],[74,2,74,10],[100,2,100,10],[113,2,113,10],[126,2,126,10],[139,2,139,10],[152,2,152,10],[165,2,165,10],[116,6,116,8],[117,6,117,8],[118,6,118,8],[123,6,123,8],[129,6,129,8],[63,6,63,8],[68,6,68,8],[76,6,76,8],[81,6,81,8],[144,6,144,8],[133,6,133,8],[141,6,141,8],[146,6,146,8],[154,6,154,8],[159,6,159,8],[167,6,167,8],[162,6,162,8],[94,6,94,8],[102,6,102,8],[107,6,107,8],[115,6,115,8],[120,6,120,8],[128,6,128,8],[137,6,137,8],[155,6,155,8],[156,6,156,8],[96,6,96,8],[148,6,148,8],[157,6,157,8],[103,6,103,8],[104,6,104,8],[105,6,105,8],[130,6,130,8],[109,6,109,8],[297,2,297,4],[202,3,202,10],[201,3,201,10],[200,3,200,10],[204,3,204,10],[205,3,205,10],[206,3,206,10],[266,2,266,10],[284,2,284,10],[267,2,268,4],[267,5,268,10],[269,2,270,4],[269,5,270,10],[292,2,292,10],[293,2,293,10],[285,3,285,10],[273,5,274,10],[264,8,264,9],[261,6,261,7],[229,3,229,10],[230,3,230,10],[231,3,231,10],[216,3,216,8],[218,9,218,10],[219,3,219,8],[219,9,219,10],[221,9,221,10],[221,3,221,8],[259,6,259,7],[260,6,260,7],[244,3,244,10],[245,3,245,10],[233,3,233,10],[234,3,234,10],[235,3,235,10],[236,3,236,10],[237,3,237,10],[239,2,239,10],[248,3,248,10],[168,6,168,8],[169,6,169,8],[170,6,170,8],[212,3,212,8],[212,9,212,10],[208,2,208,10],[209,3,209,8],[209,9,209,10],[194,3,195,10],[187,3,187,10],[199,3,199,10],[203,3,203,10],[172,6,172,8],[173,6,173,8],[182,9,182,10],[45,19,45,21],[50,19,50,21],[182,2,182,5],[182,6,182,7],[46,19,46,21],[179,2,179,7],[48,2,48,10],[87,2,87,10],[50,6,50,8],[51,6,51,8],[52,6,52,8],[53,6,53,8],[64,6,64,8],[65,6,65,8],[66,6,66,8],[77,6,77,8],[78,6,78,8],[131,6,131,8],[180,2,180,7],[70,6,70,8],[71,6,71,8],[72,6,72,8],[71,4,71,5],[72,4,72,5],[290,2,290,10],[291,2,291,10],[298,2,298,4],[40,3,40,10],[41,3,41,10],[227,2,227,10],[228,2,228,10],[232,3,232,10],[252,3,252,10],[253,3,253,10],[255,2,255,10],[257,2,257,10],[246,3,246,10],[247,3,247,10],[263,6,263,7],[271,2,272,4],[261,8,261,9],[262,6,262,7],[262,8,262,9],[264,6,264,7],[185,3,185,10],[197,3,197,10],[196,3,196,10],[286,3,286,10],[287,3,287,10],[288,3,288,10],[193,3,193,10],[192,3,192,10],[191,3,191,10],[188,3,188,10],[198,3,198,10],[215,3,215,8],[215,9,215,10],[213,3,213,8],[213,9,213,10],[214,3,214,8],[214,9,214,10],[210,3,210,8],[210,9,210,10],[211,3,211,8],[211,9,211,10],[249,3,249,10],[251,2,251,10],[240,3,240,10],[241,3,241,10],[242,3,242,10],[243,3,243,10],[216,9,216,10],[69,6,69,8],[271,5,272,10],[273,2,274,4],[37,3,37,10],[38,3,38,10],[39,3,39,10],[224,3,224,8],[224,9,224,10],[225,3,225,8],[225,9,225,10],[223,3,223,8],[223,9,223,10],[222,3,222,8],[222,9,222,10],[220,3,220,8],[220,9,220,10],[217,3,217,8],[217,9,217,10],[218,3,218,8],[79,6,79,8],[90,6,90,8],[91,6,91,8],[92,6,92,8],[95,6,95,8],[2,8,2,9],[3,2,5,10],[7,2,7,10],[8,2,8,3],[8,4,8,10],[26,2,26,8],[26,9,26,10],[20,3,20,10],[23,3,23,10],[25,2,25,10],[13,2,13,10],[15,2,15,10],[16,2,16,10],[9,2,9,3],[9,4,9,10],[10,2,10,3],[32,3,32,8],[10,5,10,7],[10,9,10,10],[12,2,12,10],[28,3,28,5],[61,2,61,10],[30,9,30,10],[31,9,31,10],[32,9,32,10],[55,6,55,8],[56,6,56,8],[57,6,57,8],[58,4,58,5],[58,6,58,8],[59,4,59,5],[59,6,59,8],[33,2,33,10],[44,2,44,10],[35,2,35,10],[36,3,36,10],[45,2,46,10],[27,3,27,8],[27,9,27,10],[29,3,29,8],[97,4,97,5],[97,6,97,8],[98,4,98,5],[98,6,98,8],[82,6,82,8],[84,4,84,5],[84,6,84,8],[85,4,85,5],[85,6,85,8],[83,6,83,8],[89,6,89,8],[124,4,124,5],[124,6,124,8],[134,6,134,8],[135,6,135,8],[108,6,108,8],[111,6,111,8],[121,6,121,8],[122,6,122,8],[123,4,123,5],[110,4,110,5],[110,6,110,8],[111,4,111,5],[275,2,275,10],[163,4,163,5],[163,6,163,8],[136,4,136,5],[136,6,136,8],[137,4,137,5],[147,6,147,8],[176,4,176,5],[176,6,176,8],[186,3,186,10],[174,6,174,8],[175,4,175,5],[175,6,175,8],[160,6,160,8],[161,6,161,8],[162,4,162,5],[149,4,149,5],[149,6,149,8],[150,4,150,5],[150,6,150,8],[184,2,184,10],[178,2,178,10],[142,6,142,8],[143,6,143,8]]}
[]
[]
[]
[null,null,"COTIZACIÓN DE VEHÍCULO PESADO"]
[]
[]
[]
[null,null,"INFORMACION DEL ASEGURADO"]
[null,null,"Asegurado:"]
[null,null,"Agente:"]
[null,null,"Vigencia:",null,365,"días, inicio de vigencia por confirmar.",null,null,"Fecha:",{"$f":"TODAY()","v":"2019-07-11"}]
[]
[null,null,"OBJETO DEL SEGURO"]
[null,null,"Este seguro cubre al (a los) vehículo (s) asegurado (s) de los daños o pérdidas materiales, a consecuencia de cualquiera de los riesgos nombrados en las Condiciones Generales, en forma tal que exijan su reparación o reposición, en función de los términos y condiciones del mismo."]
[]
[null,null,"COBERTURAS"]
[null,null,"Pérdidas Totales y Parciales, en Ecuador, Colombia y Perú, a consecuencia de:"]
[null,null,"•  ","Accidentes de tránsito o circulación: Hecho súbito, imprevisto e independiente a la voluntad del asegurado"]
[null,null,"•  ","Asalto, hurto, robo o tentativa de éstos;"]
[null,null,"•  ","Actos malintencionados de terceros;"]
[null,null,"•  ","Incendio y/o Explosión;"]
[null,null,"•  ","Temblor, terremoto, erupción volcánica y otros eventos de la naturaleza;"]
[null,null,"•  ","Caída y/o golpes de objetos extraños"]
[null,null,"•  ","Traslado del vehículo en grúas y gabarras"]
[]
[null,null,"COBERTURAS ADICIONALES"]
[null,null,"Detalle de Cobertura",null,null,null,null,null,null,"Límite Asegurado"]
[null,null,"•  ","Responsabilidad Civil (Límite Único Combinado y Agregado Anual)",null,null,null,null,null,30000]
[null,null,"•  ","Responsabilidad Civil en Exceso ",null,null,null,null,null,null,null,null,{"$f":"K29*0.5%/365*E11","v":0},"TASA: 0.50%"]
[null,null,"•  ","Accidentes Personales (para ocupantes del vehículo, máximo 3 personas)"]
[null,null,null,"•   Muerte e invalidez permanente (por persona)",null,null,null,null,null,10000]
[null,null,null,"•   Gastos Médicos por accidente (por persona)",null,null,null,null,null,2500]
[null,null,"•  ","Gastos en defensa de juicio",null,null,null,null,null,2000]
[null,null,"* Según constan en las condiciones generales de la póliza."]
[]
[null,null,"DEDUCIBLES"]
[null,null,"•  ","Otros Eventos:"]
[null,null,null,"10% del valor del siniestro, mínimo 1% del valor asegurado, no menor a US$ 750,00. "]
[null,null,"•  ","Pérdidas Total por Robo, Asalto y/o Hurto:"]
[null,null,"−","Sin deducible, si el vehículo posee instalado un dispositivo satelital de localización, rastreo y recuperación vehicular."]
[null,null,"−","10% del valor del siniestro, si el vehículo no posee instalado un dispositivo satelital de localización, rastreo y recuperación vehicular."]
[null,null,"−","15% del valor del siniestro, si el vehículo no posee instalado un dispositivo satelital de localización, rastreo y recuperación vehicular y se encuentra en citado en la sección de Obligaciones del Asegurado."]
[null,null,null,"* Aplican por evento y el que fuere mayor."]
[]
[null,null,"INFORMACIÓN DEL RIESGO"]
[null,null,"Tipo de Cotización:",null,null,null,null,null,null,null,null,null,null,null,null,null,null,null,null,"INDIVIDUALES"]
[null,null,null,null,null,null,null,null,null,null,null,null,null,null,null,null,null,null,null,"Heavy Truck"]
[null,null,null,null,null,null,null,null,null,null,null,null,null,null,null,1,{"$f":"K51","v":0},{"$f":"G59","v":0},null,2015,2020,2.8000000000000001E-2]
[null,null,"CARACTERISTICAS DEL VEHÍCULO",null,null,null,null,null,null,null,null,null,null,null,null,2,{"$f":"K64","v":0},{"$f":"G72","v":0},null,2009,2014,3.1E-2]
[null,null,null,"ITEM: 1 ","TIPO:*",null,null,null,null,null,null,null,null,null,null,3,{"$f":"K77","v":0},{"$f":"G85","v":0},null,2000,2008,3.5000000000000003E-2]
[null,null,null,null,"MARCA:",null,null,null,null,"Tasa:",{"$f":"IF(AND($R$61=\"X\",$G$50=\"Heavy Truck\",$G$53>=$T$48),$V$48,IF(AND($R$61=\"X\",$G$50=\"Heavy Truck\",$G$53>=$T$49,$G$53<=$U$49),$V$49,IF(AND($R$61=\"X\",$G$50=\"Heavy Truck\",$G$53>=$T$50,$G$53<=$U$50),$V$50,IF(AND($R$61=\"X\",$G$50=\"Light Truck\",$G$53>=$T$52),$V$52,IF(AND($R$61=\"X\",$G$50=\"Light Truck\",$G$53>=$T$53,$G$53<=$U$53),$V$53,IF(AND($R$61=\"X\",$G$50=\"Light Truck\",$G$53>=$T$54,$G$53<=$U$54),$V$54,IF(AND($R$61=\"Y\",$G$50=\"Heavy Truck\",$G$53>=$T$58),$V$58,IF(AND($R$61=\"Y\",$G$50=\"Heavy Truck\",$G$53>=$T$59,$G$53<=$U$59),$V$59,IF(AND($R$61=\"Y\",$G$50=\"Heavy Truck\",$G$53>=$T$60,$G$53<=$U$60),$V$60,IF(AND($R$61=\"Y\",$G$50=\"Light Truck\",$G$53>=$T$62),$V$62,IF(AND($R$61=\"Y\",$G$50=\"Light Truck\",$G$53>=$T$64,$G$53<=$U$64),$V$64,IF(AND($R$61=\"Y\",$G$50=\"Light Truck\",$G$53>=$T$65,$G$53<=$U$65),$V$65,0))))))))))))","v":0},null,null,null,null,4,{"$f":"K90","v":0},{"$f":"G98","v":0},null,"Light Truck"]
[null,null,null,null,"MODELO:",null,null,null,null,"Prima Neta:",{"$f":"G59*K51/365*$E$11","v":0},null,null,null,null,5,{"$f":"K103","v":0},{"$f":"G111","v":0},null,2015,2020,4.2000000000000003E-2]
[null,null,null,null,"AÑO:*",null,null,null,null,null,null,null,null,null,null,6,{"$f":"K116","v":0},{"$f":"G124","v":0},null,2009,2014,4.4999999999999998E-2]
[null,null,null,null,"PLACA:",null,null,null,null,null,null,null,null,null,null,7,{"$f":"K129","v":0},{"$f":"G137","v":0},null,2000,2008,4.8000000000000001E-2]
[null,null,null,null,"VALOR ASEGURADO:",null,null,null,null,null,null,null,null,null,null,8,{"$f":"K142","v":0},{"$f":"G150","v":0}]
[null,null,null,null,"Casco del Vehículo:*",null,null,null,null,null,null,null,null,null,null,9,{"$f":"K155","v":0},{"$f":"G163","v":0},null,"GRUPALES"]
[null,null,null,null,"Accesorios de Audio",null,null,null,null,null,null,null,null,null,null,10,{"$f":"K168","v":0},{"$f":"G176","v":0},null,"Heavy Truck"]
[null,null,null,null,"Accesorios Extras",null,null,null,null,null,null,null,{"$f":"ISBLANK(G56)","v":true},{"$f":"IF(M58=TRUE,1,2)","v":1},null,null,null,null,null,2015,2020,2.75E-2]
[null,null,null,null,"VALOR ASEGURADO TOTAL: ",null,{"$f":"SUM(G56:I58)","v":0},null,null,"Tasa:",{"$f":"IF(SUM(N58:N60)<=5,\"\",$R$60)","v":""},null,{"$f":"ISBLANK(G50)","v":true},{"$f":"IF(M59=TRUE,1,2)","v":1},null,null,null,{"$f":"SUM(R48:R58)","v":0},null,2009,2014,2.9000000000000001E-2]
[null,null,null,null,"PRIMA NETA",null,{"$f":"IF(SUM(N58:N60)<=5,\"\",G59*K59/365*$E$11)","v":""},null,null,null,null,null,{"$f":"ISBLANK(G53)","v":true},{"$f":"IF(M60=TRUE,1,2)","v":1},null,true,"X",{"$f":"SUMPRODUCT(Q48:Q57,R48:R57)/SUM(R48:R57)","v":{"$error":"#DIV/0!"}},null,2000,2008,3.3000000000000002E-2]
[null,null,null,null,null,null,null,null,null,null,null,null,null,null,null,false,"Y",{"$f":"VLOOKUP(TRUE,P60:Q61,2,FALSE)","v":"X"},null,"Light Truck"]
[null,null,"CARACTERISTICAS DEL VEHÍCULO",null,null,null,null,null,null,null,null,null,null,null,null,null,null,null,null,2015,2020,4.1500000000000002E-2]
[null,null,null,"ITEM: 2 ","TIPO:*"]
[null,null,null,null,"MARCA:",null,null,null,null,"Tasa:",{"$f":"IF(AND($R$61=\"X\",$G$63=\"Heavy Truck\",$G$66>=$T$48),$V$48,IF(AND($R$61=\"X\",$G$63=\"Heavy Truck\",$G$66>=$T$49,$G$66<=$U$49),$V$49,IF(AND($R$61=\"X\",$G$63=\"Heavy Truck\",$G$66>=$T$50,$G$66<=$U$50),$V$50,IF(AND($R$61=\"X\",$G$63=\"Light Truck\",$G$66>=$T$52),$V$52,IF(AND($R$61=\"X\",$G$63=\"Light Truck\",$G$66>=$T$53,$G$66<=$U$53),$V$53,IF(AND($R$61=\"X\",$G$63=\"Light Truck\",$G$66>=$T$54,$G$66<=$U$54),$V$54,IF(AND($R$61=\"Y\",$G$63=\"Heavy Truck\",$G$66>=$T$58),$V$58,IF(AND($R$61=\"Y\",$G$63=\"Heavy Truck\",$G$66>=$T$59,$G$66<=$U$59),$V$59,IF(AND($R$61=\"Y\",$G$63=\"Heavy Truck\",$G$66>=$T$60,$G$66<=$U$60),$V$60,IF(AND($R$61=\"Y\",$G$63=\"Light Truck\",$G$66>=$T$62),$V$62,IF(AND($R$61=\"Y\",$G$63=\"Light Truck\",$G$66>=$T$64,$G$66<=$U$64),$V$64,IF(AND($R$61=\"Y\",$G$63=\"Light Truck\",$G$66>=$T$65,$G$66<=$U$65),$V$65,0))))))))))))","v":0},null,null,null,null,null,null,null,null,2009,2014,4.2000000000000003E-2]
[null,null,null,null,"MODELO:",null,null,null,null,"Prima Neta:",{"$f":"G72*K64/365*$E$11","v":0},null,null,null,null,null,null,null,null,2000,2008,4.4999999999999998E-2]
[null,null,null,null,"AÑO:*",null,null,null,null,null,null,null,null,null,null,"Heavy Truck"]
[null,null,null,null,"PLACA:",null,null,null,null,null,null,null,null,null,null,"Light Truck",null,null,4,3,2,1]
[null,null,null,null,"VALOR ASEGURADO:",null,null,null,null,null,null,null,null,null,null,null,null,"TIPO",{"$f":"ISNONTEXT($G$89)","v":true},{"$f":"ISNONTEXT($G$76)","v":true},{"$f":"ISNONTEXT($G$63)","v":true},{"$f":"ISNONTEXT($G$50)","v":true}]
[null,null,null,null,"Casco del Vehículo:*",null,null,null,null,null,null,null,null,null,null,5000,null,"SA",{"$f":"ISNUMBER($G$95)","v":false},{"$f":"ISNUMBER($G$82)","v":false},{"$f":"ISNUMBER($G$69)","v":false},{"$f":"ISNUMBER($G$56)","v":false}]
[null,null,null,null,"Accesorios de Audio",null,null,null,null,null,null,null,null,null,null,10000]
[null,null,null,null,"Accesorios Extras",null,null,null,null,null,null,null,{"$f":"ISBLANK(G69)","v":true},{"$f":"IF(M71=TRUE,1,2)","v":1},null,15000,null,"TASA",{"$f":"ISNUMBER($K$98)","v":false},{"$f":"ISNUMBER($K$85)","v":false},{"$f":"ISNUMBER($K$72)","v":false},{"$f":"ISNUMBER($K$59)","v":false}]
[null,null,null,null,"VALOR ASEGURADO TOTAL: ",null,{"$f":"SUM(G69:I71)","v":0},null,null,"Tasa:",{"$f":"IF(SUM(N71:N73)<=5,\"\",$R$60)","v":""},null,{"$f":"ISBLANK(G63)","v":true},{"$f":"IF(M72=TRUE,1,2)","v":1},null,20000,null,"AÑO",{"$f":"ISNUMBER(G92)","v":false},{"$f":"ISNUMBER($G$79)","v":false},{"$f":"ISNUMBER($G$66)","v":false},{"$f":"ISNUMBER($G$53)","v":false}]
[null,null,null,null,"PRIMA NETA",null,{"$f":"IF(SUM(N71:N73)<=5,\"\",G72*K72/365*$E$11)","v":""},null,null,null,null,null,{"$f":"ISBLANK(G66)","v":true},{"$f":"IF(M73=TRUE,1,2)","v":1}]
[]
[null,null,"CARACTERISTICAS DEL VEHÍCULO",null,null,null,null,null,null,null,null,null,null,null,null,null,null,null,4,3,2,1]
[null,null,null,"ITEM: 3 ","TIPO:*",null,null,null,null,null,null,null,null,null,null,null,null,"TIPO",{"$f":"ISNONTEXT($G$96)","v":true},{"$f":"ISNONTEXT($G$77)","v":true},{"$f":"ISNONTEXT($G$64)","v":true},{"$f":"ISNONTEXT($G$50)","v":true}]
[null,null,null,null,"MARCA:",null,null,null,null,"Tasa:",{"$f":"IF(AND($R$61=\"X\",$G$76=\"Heavy Truck\",$G$79>=$T$48),$V$48,IF(AND($R$61=\"X\",$G$76=\"Heavy Truck\",$G$79>=$T$49,$G$79<=$U$49),$V$49,IF(AND($R$61=\"X\",$G$76=\"Heavy Truck\",$G$79>=$T$50,$G$79<=$U$50),$V$50,IF(AND($R$61=\"X\",$G$76=\"Light Truck\",$G$79>=$T$52),$V$52,IF(AND($R$61=\"X\",$G$76=\"Light Truck\",$G$79>=$T$53,$G$79<=$U$53),$V$53,IF(AND($R$61=\"X\",$G$76=\"Light Truck\",$G$79>=$T$54,$G$79<=$U$54),$V$54,IF(AND($R$61=\"Y\",$G$76=\"Heavy Truck\",$G$79>=$T$58),$V$58,IF(AND($R$61=\"Y\",$G$76=\"Heavy Truck\",$G$79>=$T$59,$G$79<=$U$59),$V$59,IF(AND($R$61=\"Y\",$G$76=\"Heavy Truck\",$G$79>=$T$60,$G$79<=$U$60),$V$60,IF(AND($R$61=\"Y\",$G$76=\"Light Truck\",$G$79>=$T$62),$V$62,IF(AND($R$61=\"Y\",$G$76=\"Light Truck\",$G$79>=$T$64,$G$79<=$U$64),$V$64,IF(AND($R$61=\"Y\",$G$76=\"Light Truck\",$G$79>=$T$65,$G$79<=$U$65),$V$65,0))))))))))))","v":0}]
[null,null,null,null,"MODELO:",null,null,null,null,"Prima Neta:",{"$f":"G85*K77/365*$E$11","v":0},null,null,null,null,null,null,"SA",{"$f":"ISNUMBER($K$99)","v":false},{"$f":"ISNUMBER(#REF!)","v":false},{"$f":"ISNUMBER($G$70)","v":false},{"$f":"ISNUMBER($G$59)","v":true}]
[null,null,null,null,"AÑO:*",null,null,null,null,null,null,null,null,null,null,null,null,"TASA",{"$f":"ISNUMBER($K$94)","v":false},{"$f":"ISNUMBER($K$86)","v":false},{"$f":"ISNUMBER($K$73)","v":false},{"$f":"ISNUMBER($K$59)","v":false}]
[null,null,null,null,"PLACA:",null,null,null,null,null,null,null,null,null,null,null,null,"AÑO",{"$f":"ISNUMBER(G93)","v":false},".",{"$f":"ISNUMBER($G$67)","v":false},{"$f":"ISNUMBER($G$53)","v":false}]
[null,null,null,null,"VALOR ASEGURADO:"]
[null,null,null,null,"Casco del Vehículo:*"]
[null,null,null,null,"Accesorios de Audio"]
[null,null,null,null,"Accesorios Extras",null,null,null,null,null,null,null,{"$f":"ISBLANK(G82)","v":true},{"$f":"IF(M84=TRUE,1,2)","v":1}]
[null,null,null,null,"VALOR ASEGURADO TOTAL: ",null,{"$f":"SUM(G82:I84)","v":0},null,null,"Tasa:",{"$f":"IF(SUM(N84:N86)<=5,\"\",$R$60)","v":""},null,{"$f":"ISBLANK(G76)","v":true},{"$f":"IF(M85=TRUE,1,2)","v":1}]
[null,null,null,null,"PRIMA NETA",null,{"$f":"IF(SUM(N84:N86)<=5,\"\",G85*K85/365*$E$11)","v":""},null,null,null,null,null,{"$f":"ISBLANK(G79)","v":true},{"$f":"IF(M86=TRUE,1,2)","v":1}]
[]
[null,null,"CARACTERISTICAS DEL VEHÍCULO"]
[null,null,null,"ITEM: 4","TIPO:*"]
[null,null,null,null,"MARCA:",null,null,null,null,"Tasa:",{"$f":"IF(AND($R$61=\"X\",$G$89=\"Heavy Truck\",$G$92>=$T$48),$V$48,IF(AND($R$61=\"X\",$G$89=\"Heavy Truck\",$G$92>=$T$49,$G$92<=$U$49),$V$49,IF(AND($R$61=\"X\",$G$89=\"Heavy Truck\",$G$92>=$T$50,$G$92<=$U$50),$V$50,IF(AND($R$61=\"X\",$G$89=\"Light Truck\",$G$92>=$T$52),$V$52,IF(AND($R$61=\"X\",$G$89=\"Light Truck\",$G$92>=$T$53,$G$92<=$U$53),$V$53,IF(AND($R$61=\"X\",$G$89=\"Light Truck\",$G$92>=$T$54,$G$92<=$U$54),$V$54,IF(AND($R$61=\"Y\",$G$89=\"Heavy Truck\",$G$92>=$T$58),$V$58,IF(AND($R$61=\"Y\",$G$89=\"Heavy Truck\",$G$92>=$T$59,$G$92<=$U$59),$V$59,IF(AND($R$61=\"Y\",$G$89=\"Heavy Truck\",$G$92>=$T$60,$G$92<=$U$60),$V$60,IF(AND($R$61=\"Y\",$G$89=\"Light Truck\",$G$92>=$T$62),$V$62,IF(AND($R$61=\"Y\",$G$89=\"Light Truck\",$G$92>=$T$64,$G$92<=$U$64),$V$64,IF(AND($R$61=\"Y\",$G$89=\"Light Truck\",$G$92>=$T$65,$G$92<=$U$65),$V$65,0))))))))))))","v":0}]
[null,null,null,null,"MODELO:",null,null,null,null,"Prima Neta:",{"$f":"G98*K90/365*$E$11","v":0}]
[null,null,null,null,"AÑO:*"]
[null,null,null,null,"PLACA:"]
[null,null,null,null,"VALOR ASEGURADO:"]
[null,null,null,null,"Casco del Vehículo:*"]
[null,null,null,null,"Accesorios de Audio"]
[null,null,null,null,"Accesorios Extras",null,null,null,null,null,null,null,{"$f":"ISBLANK(G95)","v":true},{"$f":"IF(M97=TRUE,1,2)","v":1}]
[null,null,null,null,"VALOR ASEGURADO TOTAL: ",null,{"$f":"SUM(G95:I97)","v":0},null,null,"Tasa:",{"$f":"IF(SUM(N97:N99)<=5,\"\",$R$60)","v":""},null,{"$f":"ISBLANK(G89)","v":true},{"$f":"IF(M98=TRUE,1,2)","v":1}]
[null,null,null,null,"PRIMA NETA",null,{"$f":"IF(SUM(N97:N99)<=5,\"\",G98*K98/365*$E$11)","v":""},null,null,null,null,null,{"$f":"ISBLANK(G92)","v":true},{"$f":"IF(M99=TRUE,1,2)","v":1}]
[]
[null,null,"CARACTERISTICAS DEL VEHÍCULO"]
[null,null,null,"ITEM: 5 ","TIPO:*"]
[null,null,null,null,"MARCA:",null,null,null,null,"Tasa:",{"$f":"IF(AND($R$61=\"X\",$G$102=\"Heavy Truck\",$G$105>=$T$48),$V$48,IF(AND($R$61=\"X\",$G$102=\"Heavy Truck\",$G$105>=$T$49,$G$105<=$U$49),$V$49,IF(AND($R$61=\"X\",$G$102=\"Heavy Truck\",$G$105>=$T$50,$G$105<=$U$50),$V$50,IF(AND($R$61=\"X\",$G$102=\"Light Truck\",$G$105>=$T$52),$V$52,IF(AND($R$61=\"X\",$G$102=\"Light Truck\",$G$105>=$T$53,$G$105<=$U$53),$V$53,IF(AND($R$61=\"X\",$G$102=\"Light Truck\",$G$105>=$T$54,$G$105<=$U$54),$V$54,IF(AND($R$61=\"Y\",$G$102=\"Heavy Truck\",$G$105>=$T$58),$V$58,IF(AND($R$61=\"Y\",$G$102=\"Heavy Truck\",$G$105>=$T$59,$G$105<=$U$59),$V$59,IF(AND($R$61=\"Y\",$G$102=\"Heavy Truck\",$G$105>=$T$60,$G$105<=$U$60),$V$60,IF(AND($R$61=\"Y\",$G$102=\"Light Truck\",$G$105>=$T$62),$V$62,IF(AND($R$61=\"Y\",$G$102=\"Light Truck\",$G$105>=$T$64,$G$105<=$U$64),$V$64,IF(AND($R$61=\"Y\",$G$102=\"Light Truck\",$G$105>=$T$65,$G$105<=$U$65),$V$65,0))))))))))))","v":0}]
[null,null,null,null,"MODELO:",null,null,null,null,"Prima Neta:",{"$f":"G111*K103/365*$E$11","v":0}]
[null,null,null,null,"AÑO:*"]
[null,null,null,null,"PLACA:"]
[null,null,null,null,"VALOR ASEGURADO:"]
[null,null,null,null,"Casco del Vehículo:*"]
[null,null,null,null,"Accesorios de Audio"]
[null,null,null,null,"Accesorios Extras",null,null,null,null,null,null,null,{"$f":"ISBLANK(G108)","v":true},{"$f":"IF(M110=TRUE,1,2)","v":1}]
[null,null,null,null,"VALOR ASEGURADO TOTAL: ",null,{"$f":"SUM(G108:I110)","v":0},null,null,"Tasa:",{"$f":"IF(SUM(N110:N112)<=5,\"\",$R$60)","v":""},null,{"$f":"ISBLANK(G102)","v":true},{"$f":"IF(M111=TRUE,1,2)","v":1}]
[null,null,null,null,"PRIMA NETA",null,{"$f":"IF(SUM(N110:N112)<=5,\"\",G111*K111/365*$E$11)","v":""},null,null,null,null,null,{"$f":"ISBLANK(G105)","v":true},{"$f":"IF(M112=TRUE,1,2)","v":1}]
[]
[null,null,"CARACTERISTICAS DEL VEHÍCULO"]
[null,null,null,"ITEM: 6","TIPO:*"]
[null,null,null,null,"MARCA:",null,null,null,null,"Tasa:",{"$f":"IF(AND($R$61=\"X\",$G$115=\"Heavy Truck\",$G$118>=$T$48),$V$48,IF(AND($R$61=\"X\",$G$115=\"Heavy Truck\",$G$118>=$T$49,$G$118<=$U$49),$V$49,IF(AND($R$61=\"X\",$G$115=\"Heavy Truck\",$G$118>=$T$50,$G$118<=$U$50),$V$50,IF(AND($R$61=\"X\",$G$115=\"Light Truck\",$G$118>=$T$52),$V$52,IF(AND($R$61=\"X\",$G$115=\"Light Truck\",$G$118>=$T$53,$G$118<=$U$53),$V$53,IF(AND($R$61=\"X\",$G$115=\"Light Truck\",$G$118>=$T$54,$G$118<=$U$54),$V$54,IF(AND($R$61=\"Y\",$G$115=\"Heavy Truck\",$G$118>=$T$58),$V$58,IF(AND($R$61=\"Y\",$G$115=\"Heavy Truck\",$G$118>=$T$59,$G$118<=$U$59),$V$59,IF(AND($R$61=\"Y\",$G$115=\"Heavy Truck\",$G$118>=$T$60,$G$118<=$U$60),$V$60,IF(AND($R$61=\"Y\",$G$115=\"Light Truck\",$G$118>=$T$62),$V$62,IF(AND($R$61=\"Y\",$G$115=\"Light Truck\",$G$118>=$T$64,$G$118<=$U$64),$V$64,IF(AND($R$61=\"Y\",$G$115=\"Light Truck\",$G$118>=$T$65,$G$118<=$U$65),$V$65,0))))))))))))","v":0}]
[null,null,null,null,"MODELO:",null,null,null,null,"Prima Neta:",{"$f":"G124*K116/365*$E$11","v":0}]
[null,null,null,null,"AÑO:*"]
[null,null,null,null,"PLACA:"]
[null,null,null,null,"VALOR ASEGURADO:"]
[null,null,null,null,"Casco del Vehículo:*"]
[null,null,null,null,"Accesorios de Audio"]
[null,null,null,null,"Accesorios Extras",null,null,null,null,null,null,null,{"$f":"ISBLANK(G121)","v":true},{"$f":"IF(M123=TRUE,1,2)","v":1}]
[null,null,null,null,"VALOR ASEGURADO TOTAL: ",null,{"$f":"SUM(G121:I123)","v":0},null,null,"Tasa:",{"$f":"IF(SUM(N123:N125)<=5,\"\",$R$60)","v":""},null,{"$f":"ISBLANK(G115)","v":true},{"$f":"IF(M124=TRUE,1,2)","v":1}]
[null,null,null,null,"PRIMA NETA",null,{"$f":"IF(SUM(N123:N125)<=5,\"\",G124*K124/365*$E$11)","v":""},null,null,null,null,null,{"$f":"ISBLANK(G118)","v":true},{"$f":"IF(M125=TRUE,1,2)","v":1}]
[]
[null,null,"CARACTERISTICAS DEL VEHÍCULO"]
[null,null,null,"ITEM: 7 ","TIPO:*"]
[null,null,null,null,"MARCA:",null,null,null,null,"Tasa:",{"$f":"IF(AND($R$61=\"X\",$G$128=\"Heavy Truck\",$G$131>=$T$48),$V$48,IF(AND($R$61=\"X\",$G$128=\"Heavy Truck\",$G$131>=$T$49,$G$131<=$U$49),$V$49,IF(AND($R$61=\"X\",$G$128=\"Heavy Truck\",$G$131>=$T$50,$G$131<=$U$50),$V$50,IF(AND($R$61=\"X\",$G$128=\"Light Truck\",$G$131>=$T$52),$V$52,IF(AND($R$61=\"X\",$G$128=\"Light Truck\",$G$131>=$T$53,$G$131<=$U$53),$V$53,IF(AND($R$61=\"X\",$G$128=\"Light Truck\",$G$131>=$T$54,$G$131<=$U$54),$V$54,IF(AND($R$61=\"Y\",$G$128=\"Heavy Truck\",$G$131>=$T$58),$V$58,IF(AND($R$61=\"Y\",$G$128=\"Heavy Truck\",$G$131>=$T$59,$G$131<=$U$59),$V$59,IF(AND($R$61=\"Y\",$G$128=\"Heavy Truck\",$G$131>=$T$60,$G$131<=$U$60),$V$60,IF(AND($R$61=\"Y\",$G$128=\"Light Truck\",$G$131>=$T$62),$V$62,IF(AND($R$61=\"Y\",$G$128=\"Light Truck\",$G$131>=$T$64,$G$131<=$U$64),$V$64,IF(AND($R$61=\"Y\",$G$128=\"Light Truck\",$G$131>=$T$65,$G$131<=$U$65),$V$65,0))))))))))))","v":0}]
[null,null,null,null,"MODELO:",null,null,null,null,"Prima Neta:",{"$f":"G137*K129/365*$E$11","v":0}]
[null,null,null,null,"AÑO:*"]
[null,null,null,null,"PLACA:"]
[null,null,null,null,"VALOR ASEGURADO:"]
[null,null,null,null,"Casco del Vehículo:*"]
[null,null,null,null,"Accesorios de Audio"]
[null,null,null,null,"Accesorios Extras",null,null,null,null,null,null,null,{"$f":"ISBLANK(G134)","v":true},{"$f":"IF(M136=TRUE,1,2)","v":1}]
[null,null,null,null,"VALOR ASEGURADO TOTAL: ",null,{"$f":"SUM(G134:I136)","v":0},null,null,"Tasa:",{"$f":"IF(SUM(N136:N138)<=5,\"\",$R$60)","v":""},null,{"$f":"ISBLANK(G128)","v":true},{"$f":"IF(M137=TRUE,1,2)","v":1}]
[null,null,null,null,"PRIMA NETA",null,{"$f":"IF(SUM(N136:N138)<=5,\"\",G137*K137/365*$E$11)","v":""},null,null,null,null,null,{"$f":"ISBLANK(G131)","v":true},{"$f":"IF(M138=TRUE,1,2)","v":1}]
[]
[null,null,"CARACTERISTICAS DEL VEHÍCULO"]
[null,null,null,"ITEM: 8 ","TIPO:*"]
[null,null,null,null,"MARCA:",null,null,null,null,"Tasa:",{"$f":"IF(AND($R$61=\"X\",$G$141=\"Heavy Truck\",$G$144>=$T$48),$V$48,IF(AND($R$61=\"X\",$G$141=\"Heavy Truck\",$G$144>=$T$49,$G$144<=$U$49),$V$49,IF(AND($R$61=\"X\",$G$141=\"Heavy Truck\",$G$144>=$T$50,$G$144<=$U$50),$V$50,IF(AND($R$61=\"X\",$G$141=\"Light Truck\",$G$144>=$T$52),$V$52,IF(AND($R$61=\"X\",$G$141=\"Light Truck\",$G$144>=$T$53,$G$144<=$U$53),$V$53,IF(AND($R$61=\"X\",$G$141=\"Light Truck\",$G$144>=$T$54,$G$144<=$U$54),$V$54,IF(AND($R$61=\"Y\",$G$141=\"Heavy Truck\",$G$144>=$T$58),$V$58,IF(AND($R$61=\"Y\",$G$141=\"Heavy Truck\",$G$144>=$T$59,$G$144<=$U$59),$V$59,IF(AND($R$61=\"Y\",$G$141=\"Heavy Truck\",$G$144>=$T$60,$G$144<=$U$60),$V$60,IF(AND($R$61=\"Y\",$G$141=\"Light Truck\",$G$144>=$T$62),$V$62,IF(AND($R$61=\"Y\",$G$141=\"Light Truck\",$G$144>=$T$64,$G$144<=$U$64),$V$64,IF(AND($R$61=\"Y\",$G$141=\"Light Truck\",$G$144>=$T$65,$G$144<=$U$65),$V$65,0))))))))))))","v":0}]
[null,null,null,null,"MODELO:",null,null,null,null,"Prima Neta:",{"$f":"G150*K142/365*$E$11","v":0}]
[null,null,null,null,"AÑO:*"]
[null,null,null,null,"PLACA:"]
[null,null,null,null,"VALOR ASEGURADO:"]
[null,null,null,null,"Casco del Vehículo:*"]
[null,null,null,null,"Accesorios de Audio"]
[null,null,null,null,"Accesorios Extras",null,null,null,null,null,null,null,{"$f":"ISBLANK(G147)","v":true},{"$f":"IF(M149=TRUE,1,2)","v":1}]
[null,null,null,null,"VALOR ASEGURADO TOTAL: ",null,{"$f":"SUM(G147:I149)","v":0},null,null,"Tasa:",{"$f":"IF(SUM(N149:N151)<=5,\"\",$R$60)","v":""},null,{"$f":"ISBLANK(G141)","v":true},{"$f":"IF(M150=TRUE,1,2)","v":1}]
[null,null,null,null,"PRIMA NETA",null,{"$f":"IF(SUM(N149:N151)<=5,\"\",G150*K150/365*$E$11)","v":""},null,null,null,null,null,{"$f":"ISBLANK(G144)","v":true},{"$f":"IF(M151=TRUE,1,2)","v":1}]
[]
[null,null,"CARACTERISTICAS DEL VEHÍCULO"]
[null,null,null,"ITEM: 9","TIPO:*"]
[null,null,null,null,"MARCA:",null,null,null,null,"Tasa:",{"$f":"IF(AND($R$61=\"X\",$G$154=\"Heavy Truck\",$G$157>=$T$48),$V$48,IF(AND($R$61=\"X\",$G$154=\"Heavy Truck\",$G$157>=$T$49,$G$157<=$U$49),$V$49,IF(AND($R$61=\"X\",$G$154=\"Heavy Truck\",$G$157>=$T$50,$G$157<=$U$50),$V$50,IF(AND($R$61=\"X\",$G$154=\"Light Truck\",$G$157>=$T$52),$V$52,IF(AND($R$61=\"X\",$G$154=\"Light Truck\",$G$157>=$T$53,$G$157<=$U$53),$V$53,IF(AND($R$61=\"X\",$G$154=\"Light Truck\",$G$157>=$T$54,$G$157<=$U$54),$V$54,IF(AND($R$61=\"Y\",$G$154=\"Heavy Truck\",$G$157>=$T$58),$V$58,IF(AND($R$61=\"Y\",$G$154=\"Heavy Truck\",$G$157>=$T$59,$G$157<=$U$59),$V$59,IF(AND($R$61=\"Y\",$G$154=\"Heavy Truck\",$G$157>=$T$60,$G$157<=$U$60),$V$60,IF(AND($R$61=\"Y\",$G$154=\"Light Truck\",$G$157>=$T$62),$V$62,IF(AND($R$61=\"Y\",$G$154=\"Light Truck\",$G$157>=$T$64,$G$157<=$U$64),$V$64,IF(AND($R$61=\"Y\",$G$154=\"Light Truck\",$G$157>=$T$65,$G$157<=$U$65),$V$65,0))))))))))))","v":0}]
[null,null,null,null,"MODELO:",null,null,null,null,"Prima Neta:",{"$f":"G163*K155/365*$E$11","v":0}]
[null,null,null,null,"AÑO:*"]
[null,null,null,null,"PLACA:"]
[null,null,null,null,"VALOR ASEGURADO:"]
[null,null,null,null,"Casco del Vehículo:*"]
[null,null,null,null,"Accesorios de Audio"]
[null,null,null,null,"Accesorios Extras",null,null,null,null,null,null,null,{"$f":"ISBLANK(G160)","v":true},{"$f":"IF(M162=TRUE,1,2)","v":1}]
[null,null,null,null,"VALOR ASEGURADO TOTAL: ",null,{"$f":"SUM(G160:I162)","v":0},null,null,"Tasa:",{"$f":"IF(SUM(N162:N164)<=5,\"\",$R$60)","v":""},null,{"$f":"ISBLANK(G154)","v":true},{"$f":"IF(M163=TRUE,1,2)","v":1}]
[null,null,null,null,"PRIMA NETA",null,{"$f":"IF(SUM(N162:N164)<=5,\"\",G163*K163/365*$E$11)","v":""},null,null,null,null,null,{"$f":"ISBLANK(G157)","v":true},{"$f":"IF(M164=TRUE,1,2)","v":1}]
[]
[null,null,"CARACTERISTICAS DEL VEHÍCULO"]
[null,null,null,"ITEM: 1 0","TIPO:*"]
[null,null,null,null,"MARCA:",null,null,null,null,"Tasa:",{"$f":"IF(AND($R$61=\"X\",$G$167=\"Heavy Truck\",$G$170>=$T$48),$V$48,IF(AND($R$61=\"X\",$G$167=\"Heavy Truck\",$G$170>=$T$49,$G$170<=$U$49),$V$49,IF(AND($R$61=\"X\",$G$167=\"Heavy Truck\",$G$170>=$T$50,$G$170<=$U$50),$V$50,IF(AND($R$61=\"X\",$G$167=\"Light Truck\",$G$170>=$T$52),$V$52,IF(AND($R$61=\"X\",$G$167=\"Light Truck\",$G$170>=$T$53,$G$170<=$U$53),$V$53,IF(AND($R$61=\"X\",$G$167=\"Light Truck\",$G$170>=$T$54,$G$170<=$U$54),$V$54,IF(AND($R$61=\"Y\",$G$167=\"Heavy Truck\",$G$170>=$T$58),$V$58,IF(AND($R$61=\"Y\",$G$167=\"Heavy Truck\",$G$170>=$T$59,$G$170<=$U$59),$V$59,IF(AND($R$61=\"Y\",$G$167=\"Heavy Truck\",$G$170>=$T$60,$G$170<=$U$60),$V$60,IF(AND($R$61=\"Y\",$G$167=\"Light Truck\",$G$170>=$T$62),$V$62,IF(AND($R$61=\"Y\",$G$167=\"Light Truck\",$G$170>=$T$64,$G$170<=$U$64),$V$64,IF(AND($R$61=\"Y\",$G$167=\"Light Truck\",$G$170>=$T$65,$G$170<=$U$65),$V$65,0))))))))))))","v":0}]
[null,null,null,null,"MODELO:",null,null,null,null,"Prima Neta:",{"$f":"G176*K168/365*$E$11","v":0}]
[null,null,null,null,"AÑO:*"]
[null,null,null,null,"PLACA:"]
[null,null,null,null,"VALOR ASEGURADO:"]
[null,null,null,null,"Casco del Vehículo:*"]
[null,null,null,null,"Accesorios de Audio"]
[null,null,null,null,"Accesorios Extras",null,null,null,null,null,null,null,{"$f":"ISBLANK(G173)","v":true},{"$f":"IF(M175=TRUE,1,2)","v":1}]
[null,null,null,null,"VALOR ASEGURADO TOTAL: ",null,{"$f":"SUM(G173:I175)","v":0},null,null,"Tasa:",{"$f":"IF(SUM(N175:N177)<=5,\"\",$R$60)","v":""},null,{"$f":"ISBLANK(G167)","v":true},{"$f":"IF(M176=TRUE,1,2)","v":1}]
[null,null,null,null,"PRIMA NETA",null,{"$f":"IF(SUM(N175:N177)<=5,\"\",G176*K176/365*$E$11)","v":""},null,null,null,null,null,{"$f":"ISBLANK(G170)","v":true},{"$f":"IF(M177=TRUE,1,2)","v":1}]
[]
[null,null,"CUADRO DE COSTO"]
[null,null,"Bienes Asegurados:",null,null,null,null,null,"Suma Asegurada ","Tasa","Prima Neta"]
[null,null,"Vehículos según detalle adjunto. ",null,null,null,null,null,{"$f":"SUM(G59,G72,G85,G98,G111,G124,G137,G150,G163,G176)","v":0},{"$f":"R60","v":{"$error":"#DIV/0!"}},{"$f":"IF(R61=\"Y\",IF(AND(S68=FALSE,S69=TRUE,S71=TRUE,S72=TRUE,T68=FALSE,T69=TRUE,T71=TRUE,T72=TRUE,U68=FALSE,U69=TRUE,U71=TRUE,U72=TRUE,V68=FALSE,V69=TRUE,V71=TRUE,V72=TRUE),I181*J181/365*E11,\"ERROR!!!\"),I181*J181/365*E11+$M$29)","v":{"$error":"#DIV/0!"}},null,"ERROR!!!"]
[]
[null,null,"Subtotal",null,null,null,{"$f":"IF(J183=100,\"*Prima Mínima*\",\"\")","v":{"$error":"#DIV/0!"}},null,{"$f":"I181","v":0},{"$f":"IF(K181=\"ERROR\",\"ERROR!!!\",IF(K181<100,100,K181))","v":{"$error":"#DIV/0!"}}]
[]
[null,null,"BENEFICIOS ADICIONALES SIN COSTO"]
[null,null,"•  ","Lucro Cesante"]
[null,null,null,"Hasta US$ 250,00 diarios, por 10 días en caso de pérdida parcial por choque.  "]
[null,null,null,"*Aplica a partir del décimo día laborable de reparación en caso de siniestro cubierto por la poliza."]
[null,null,"•  ","Amparo Patrimonial para Conductor Designado"]
[null,null,null,"Extendiéndose a cubrir los daños que sufra el vehículo asegurado, cuando el conductor designado por el Asegurado, incumpla las "]
[null,null,null,"normas de tránsito detalladas a continuación:"]
[null,null,"−","Conducción de vehículo bajo efecto de sustancias estupefacientes, psicotrópicas o preparados que las contengan;"]
[null,null,"-","Conducción de vehículo en estado de embriaguez; "]
[null,null,"-","Contravenciones de tránsito de cuarta clase: "]
[null,null,null,"•    La o el conductor que desobedezca las órdenes de los agentes de tránsito, o que no respete las señales manuales de dichos agentes, en general toda señalización colocada en las vías públicas, tales como: semáforos, pare, ceda el paso, cruce o preferencia de vías; y,"]
[]
[null,null,null,"•   La o el conductor que con un vehículo automotor exceda dentro de un rango moderado los límites de velocidad permitidos, de conformidad con los reglamentos de tránsito correspondientes."]
[null,null,null,"* Conductor designado: persona autorizada por el asegurado, que no posea un cuarto grado de consanguinidad ni segundo de afinidad con el asegurado, representante legal, socio o accionistas del asegurado."]
[null,null,"•  ","Asistencia Vehicular"]
[null,null,"-","Remolque o transporte del vehículo, en caso de accidente o avería."]
[null,null,"-","Asistencia legal telefónica"]
[null,null,"-","Servicio de Ambulancia, en caso de accidente"]
[null,null,"-","Estadía y desplazamiento de los ocupantes por inmovilización del vehículo, en caso de accidente."]
[null,null,"•  ","Gasto de Wincha o Remolque"]
[null,null,null,"Hasta us$ 1.500,oo por evento, en caso de accidente cubierto por la póliza y en exceso de la Asistencia vehicular."]
[null,null,"•  ","Gasto de rescate de vehículos"]
[null,null,null,"Hasta US$ 1.500,00 por evento, en caso de accidente cubierto por la póliza."]
[]
[null,null,"CLÁUSULAS ADICIONALES"]
[null,null,"•  ","Cláusula de Pago de Primas  ",null,null,null,null,null,"15 días"]
[null,null,"•  ","Cláusula de Pago de Primas para Cuota Inicial","Cláusula de Pago de Primas para Cuota Inicial","Cláusula de Pago de Primas para Cuota Inicial","Cláusula de Pago de Primas para Cuota Inicial","Cláusula de Pago de Primas para Cuota Inicial","Cláusula de Pago de Primas para Cuota Inicial","15 días"]
[null,null,"•  ","Cláusula de Aviso de Siniestro","Cláusula de Notificación de Siniestro","Cláusula de Notificación de Siniestro","Cláusula de Notificación de Siniestro","Cláusula de Notificación de Siniestro","Cláusula de Notificación de Siniestro","8 días"]
[null,null,"•  ","Cláusula de Cancelación de Póliza","Cláusula de Cancelación de Póliza","Cláusula de Cancelación de Póliza","Cláusula de Cancelación de Póliza","Cláusula de Cancelación de Póliza","Cláusula de Cancelación de Póliza","30 dias"]
[null,null,"•  ","Cláusula Aclaratoria de Amparo Automático para Nuevos Accesorios, 15 días para reportar","Cláusula Aclaratoria de Amparo Automático para Nuevos Accesorios","Cláusula Aclaratoria de Amparo Automático para Nuevos Accesorios","Cláusula Aclaratoria de Amparo Automático para Nuevos Accesorios","Cláusula Aclaratoria de Amparo Automático para Nuevos Accesorios","Cláusula Aclaratoria de Amparo Automático para Nuevos Accesorios",2000]
[null,null,"•  ","Cláusula de Ajustadores, Liquidadores y Peritos","Cláusula de Ajustadores, Liquidadores y Peritos","Cláusula de Ajustadores, Liquidadores y Peritos","Cláusula de Ajustadores, Liquidadores y Peritos","Cláusula de Ajustadores, Liquidadores y Peritos","Cláusula de Ajustadores, Liquidadores y Peritos"]
[null,null,"•  ","Cláusula de Amparo Automático de Nuevas Unidades","Cláusula de Amparo Automático de Nuevas Unidades","Cláusula de Amparo Automático de Nuevas Unidades","Cláusula de Amparo Automático de Nuevas Unidades","Cláusula de Amparo Automático de Nuevas Unidades","Cláusula de Amparo Automático de Nuevas Unidades","15 días para reportar"]
[null,null,"•  ","Cláusula de Amparo Patrimonial para Chofer Designado","Cláusula de Amparo Automático de Nuevas Unidades","Cláusula de Amparo Automático de Nuevas Unidades","Cláusula de Amparo Automático de Nuevas Unidades","Cláusula de Amparo Automático de Nuevas Unidades","Cláusula de Amparo Automático de Nuevas Unidades"]
[null,null,"•  ","Cláusula de Cobertura de Avisos y Letreros","Cláusula de Cobertura de Avisos y Letreros","Cláusula de Cobertura de Avisos y Letreros","Cláusula de Cobertura de Avisos y Letreros","Cláusula de Cobertura de Avisos y Letreros","Cláusula de Cobertura de Avisos y Letreros"]
[null,null,"•  ","Cláusula de Cobertura de Caída de Puentes, Árboles, Edificios, Aeronaves, Rocas o partes de Ellos","Cláusula de Cobertura de Caída de Puentes, Árboles, Edificios, Aeronaves, Rocas O Partes de Ellos","Cláusula de Cobertura de Caída de Puentes, Árboles, Edificios, Aeronaves, Rocas O Partes de Ellos","Cláusula de Cobertura de Caída de Puentes, Árboles, Edificios, Aeronaves, Rocas O Partes de Ellos","Cláusula de Cobertura de Caída de Puentes, Árboles, Edificios, Aeronaves, Rocas O Partes de Ellos","Cláusula de Cobertura de Caída de Puentes, Árboles, Edificios, Aeronaves, Rocas O Partes de Ellos"]
[null,null,"•  ","Cláusula de Cobertura de Caminos Vecinales y Vías no Oficialmente Entregadas al Público","Cláusula de Cobertura de Caminos Vecinales y Vías No Oficialmente Entregadas al Público","Cláusula de Cobertura de Caminos Vecinales y Vías No Oficialmente Entregadas al Público","Cláusula de Cobertura de Caminos Vecinales y Vías No Oficialmente Entregadas al Público","Cláusula de Cobertura de Caminos Vecinales y Vías No Oficialmente Entregadas al Público","Cláusula de Cobertura de Caminos Vecinales y Vías No Oficialmente Entregadas al Público"]
[null,null,"•  ","Cláusula de Gastos de Wincha o Remolque","Cláusula de Gastos de Wincha O Remolque","Cláusula de Gastos de Wincha O Remolque","Cláusula de Gastos de Wincha O Remolque","Cláusula de Gastos de Wincha O Remolque","Cláusula de Gastos de Wincha O Remolque",1500]
[null,null,"•  ","Cláusula de Lucro Cesante por Reparación Parcial por choque: aplicables a partir del 10mo día de reparación.",null,null,null,null,null,"$ 250 diarios por 10 días"]
[null,null,"•  ","Cláusula de Motín, Huelgas y Actos de Vandalismo","Cláusula de Motín, Huelgas y Actos de Vandalismo","Cláusula de Motín, Huelgas y Actos de Vandalismo","Cláusula de Motín, Huelgas y Actos de Vandalismo","Cláusula de Motín, Huelgas y Actos de Vandalismo","Cláusula de Motín, Huelgas y Actos de Vandalismo"]
[null,null,"•  ","Cláusula de Pérdida de Documentos","Cláusula de Pérdida de Documentos","Cláusula de Pérdida de Documentos","Cláusula de Pérdida de Documentos","Cláusula de Pérdida de Documentos","Cláusula de Pérdida de Documentos",100]
[null,null,"•  ","Cláusula de Primera Opción de Compra","Cláusula de Primera Opción de Compra","Cláusula de Primera Opción de Compra","Cláusula de Primera Opción de Compra","Cláusula de Primera Opción de Compra","Cláusula de Primera Opción de Compra"]
[null,null,"•  ","Cláusula de No Cancelación Individual","Cláusula de Responsabilidad Civil de Vehículos No Propios","Cláusula de Responsabilidad Civil de Vehículos No Propios","Cláusula de Responsabilidad Civil de Vehículos No Propios","Cláusula de Responsabilidad Civil de Vehículos No Propios","Cláusula de Responsabilidad Civil de Vehículos No Propios"]
[]
[null,null,"EXCLUSIONES"]
[null,null,"Adicional a las exclusiones de las condiciones generales se excluye:"]
[null,null,"•  ","Tanqueros de gas, gasolina y otros derivados de petróleo."]
[null,null,"•  ","Vehículos que transporten cualquier tipo de mercadería azarosa."]
[null,null,"•  ","Vehículos de transporte público de pasajeros"]
[null,null,"•  ","Obligaciones financieras."]
[null,null,"•  ","Par y Juego."]
[null,null,"•  ","Daños a la carga transportada."]
[null,null,"•  ","Rotura y/o daños a partes y piezas producto de la operación de descarga en volquetas, o de cualquier otro dispositivo o aparejo montado sobre el vehículo asegurado."]
[null,null,"•  ","Vehículos de uso de público."]
[null,null,"•  ","Equipos desmontables o no empotrados de audio y/o video; radios de comunicación; teléfonos; tabletas electrónicas de cualquier marca; alarma; tuercas de seguridad; tranca palanca; dispositivo satelital de localización, rastreo y ubicación vehicular."]
[]
[null,null,"NOTAS ACLARATORIAS "]
[null,null,"•  ","La Cobertura de AIRBAG del vehículo asegurados es del 100%, siempre y cuando sea a consecuencia de un siniestro amparado por la póliza, indemnización que se suma al valor del siniestro a efectos de aplicar el deducible de la póliza."]
[null,null,"•  ","El límite de responsabilidad de la Compañía para pérdidas totales y parciales sobre equipos de audio (entiéndase radio, reproductor de discos compactos, amplificadores, tweeter, parlantes, conectores, etc.) y video, originales o no, es: hasta US$ 1.500,00; siempre y cuando se encuentren empotrados en el vehículo asegurado, detallados en la suma asegurada y se realice inspección previo a la aceptación del riesgo o se entregue la factura comercial respectiva de los mismos."]
[null,null,"•  ","En caso de robo parcial de radios con mascarilla desmontable, el Asegurado deberá entregar la mascarilla para que sea objeto de indemnización."]
[null,null,"•  ","El límite de responsabilidad de la Compañía para pérdidas totales y parciales sobre accesorios extras, no originales, no puede superar el valor asegurado del Caso del Vehículo, siempre y cuando se encuentren empotrados en el vehículo asegurado, detallados en la suma asegurada y se realice inspección previo a la aceptación del riesgo o se entregue la factura comercial respectiva de los mismos."]
[null,null,"•  ","Se cubren los accesorios adicionales como: gata, llave de ruedas, extintor, triángulo de seguridad y la llanta de emergencia que hayan sido declarados en el informe de inspección y se encuentren dentro del valor asegurado del vehículo. "]
[null,null,"•  ","Se cubren llantas y/o aros incluyendo la llanta de emergencia que no sean declaradas como accesorios adicionales del vehículo, con base al valor de las llantas y/o aros originales de fábrica."]
[null,null,"•  ","Se amplía el límite de circulación para los vehículos asegurados, en los países vecinos de Colombia y Perú, conforme lo establecido en las condiciones generales."]
[null,null,"•  ","Las coberturas de Accidentes Personales y Responsabilidad Civil serán indemnizadas en exceso del SPPAT."]
[null,null,"•  ","No se encuentran amparados los eventos que se produzcan como consecuencia de la conducción del vehículo por parte de personas que se encuentren bajo la influencia de alcohol."]
[null,null,"•  ","No se encuentran amparados los eventos que se produzcan como consecuencia de la conducción del vehículos por parte de personas que no posean licencia de conducir."]
[]
[null,null,"OBLIGACIONES DEL ASEGURADO"]
[null,null,"•  ","El Asegurado se obliga a matricular a su nombre el vehículo asegurado en un plazo de treinta (30) días a partir del inicio de vigencia de la póliza, constituyendo la matrícula requisito indispensable para la atención de cualquier reclamo. En caso de incumplimiento, se suspenderá el proceso de indemnización hasta la presentación de la misma, salvo que el Asegurado presente certificación, y documentación emitidos por la Autoridad Competente, para la justificación de dicho incumplimiento."]
[null,null,"•  ","Los vehículos con valor asegurable mayor o igual a US$ 50.000,00 deben tener instalado y en funcionamiento un Dispositivo Satelital de Localización, Rastreo y Recuperación Vehicular."]
[]
[null,null,"El incumplimiento total o parcial de las obligaciones citadas, libera a la compañía de seguros de todo responsabilidad en caso de siniestro."]
[]
[null,null,"COSTO DEL SEGURO"]
[]
[null,null," ",null,null,"Prima",{"$f":"J183","v":{"$error":"#DIV/0!"}},{"$f":"[1]ROBO!CV162","v":0}]
[null,null,null,null,null,"S.C.V.S.                            3.5%",{"$f":"IF(G260=\"ERROR!!!\",\"ERROR!!!\",G260*3.5%)","v":{"$error":"#DIV/0!"}},{"$f":"H260*3.5%","v":0}]
[null,null,null,null,null,"S.S.C.                                0.5%",{"$f":"IF(G260=\"ERROR!!!\",\"ERROR!!!\",G260*0.5%)","v":{"$error":"#DIV/0!"}},{"$f":"H260*0.5%","v":0}]
[null,null,null,null,null,"D. de Emisión",{"$f":"IF(G260=\"ERROR!!!\",\"ERROR!!!\",IF(G260=0,0,IF(G260>0,IF(G260<=250,0.5,IF(G260>250,IF(G260<=500,1,IF(G260>500,IF(G260<=1000,3,IF(G260>1000,IF(G260<=2000,5,IF(G260>2000,IF(G260<=4000,7,IF(G260>4000,9,0)))))))))))))","v":{"$error":"#DIV/0!"}},{"$f":"IF(H260=0,0,IF(H260>0,IF(H260<=250,0.5,IF(H260>250,IF(H260<=500,1,IF(H260>500,IF(H260<=1000,3,IF(H260>1000,IF(H260<=2000,5,IF(H260>2000,IF(H260<=4000,7,IF(H260>4000,9,0))))))))))))","v":0}]
[null,null,null,null,null,"I.V.A.                                  12%",{"$f":"IF(G260=\"ERROR!!!\",\"ERROR!!!\",SUM(G261,G260,G262,G263)*12%)","v":{"$error":"#DIV/0!"}},{"$f":"SUM(H263,H260)*12%","v":0}]
[null,null,null,null,null,"Total",{"$f":"IF(G260=\"ERROR!!!\",\"ERROR!!!\",SUM(G260:H264))","v":{"$error":"#DIV/0!"}},{"$f":"SUM(H260:H264)","v":0}]
[]
[null,null,"FORMA DE PAGO"]
[null,null,"Contado"]
[]
[null,null,"Debito Bancario",null,null,"* 3 meses, Prima Mínima US$150                                       * 9 meses, Prima Mínima US$450\n* 6 meses, Prima Mínima US$300                                     *12 meses, Prima Mínima US$600\n"]
[]
[null,null,"Tarjeta de Crédito",null,null,"* 3, 6, 9 meses sin intereses, sin prima mínima           *12 meses sin intereses, prima Mínima US$600 \n* 3, 6, 9, 12 con intereses, sin prima Mínima\n"]
[]
[null,null,"Cuotas",null,null,"* 2 a 12  meses sin intereses"]
[]
[]
[null,null,"                                                                                                                            Realiza tus pagos de manera más efectiva con nuestro "]
[]
[]
[]
[]
[]
[]
[]
[null,null,"DOCUMENTOS REQUERIDOS PARA LA EMISION"]
[null,null,"•  ","Formulario de Vinculación \"Conozca a su cliente\" (Natural o Jurídico) y documentos detallados en el mismo."]
[null,null,"•  ","Copia de Matrícula(s) del(los) vehículo(s). "]
[null,null,"•  ","Informe de Inspección favorable."]
[null,null,"•  ","En caso que el(los) vehículo(s) sea(n) nuevo(s), se deberá presentar la(s) factura(s) de compra(s)."]
[]
[null,null,"Importante: Esta cotización está basada estrictamente en que no haya cambios materiales en el riesgo, o la información provista para el análisis del riesgo, entre la fecha de esta oferta y la fecha de inicio de vigencia del seguro.   En el supuesto de que hubiese algún cambio material, (el término material será definido a la discreción exclusiva de la aseguradora) esta oferta de seguro podrá ser modificada y / o retirada.  "]
[null,null,"Esta cotización tiene validez por quince (15) días."]
[]
[null,null,"Atentamente,"]
[]
[]
[]
[null,null,{"$f":"E10","v":0}]
[null,null,"Oriente Seguros S.A."]
[null,null,"Elaborado por : Cotizador VH Oriente Seguros"]

{"sheet":"Pérdida Total","index":1,"n_rows":264,"n_cols":14,"rows_kept":264,"cut":false,"hidden":false,"merged":[[118,6,118,8],[119,6,119,8],[113,6,113,8],[102,6,102,8],[107,4,107,5],[110,2,110,10],[104,6,104,8],[105,6,105,8],[106,6,106,8],[107,6,107,8],[108,4,108,5],[108,6,108,8],[76,6,76,8],[78,6,78,8],[79,6,79,8],[80,6,80,8],[81,4,81,5],[81,6,81,8],[82,4,82,5],[82,6,82,8],[84,2,84,10],[67,6,67,8],[68,4,68,5],[68,6,68,8],[69,4,69,5],[69,6,69,8],[71,2,71,10],[73,6,73,8],[74,6,74,8],[75,6,75,8],[9,2,9,3],[9,4,9,10],[10,2,10,3],[10,5,10,7],[10,9,10,10],[12,2,12,10],[2,8,2,9],[3,2,5,10],[7,2,7,10],[8,2,8,3],[8,4,8,10],[20,3,20,10],[21,3,21,10],[22,3,22,10],[23,3,23,10],[24,3,24,10],[26,2,26,10],[13,2,13,10],[15,2,15,10],[16,2,16,10],[17,3,17,10],[18,3,18,10],[19,3,19,10],[33,17,33,19],[33,2,33,10],[44,2,44,10],[47,17,47,19],[27,2,27,8],[27,9,27,10],[32,17,32,19],[35,2,35,10],[36,3,36,10],[37,3,37,10],[38,3,38,10],[28,9,28,10],[31,9,31,10],[32,9,32,10],[28,3,28,8],[29,3,29,8],[30,9,30,10],[32,3,32,8],[53,17,53,19],[52,6,52,8],[45,2,45,10],[48,17,48,19],[49,17,49,19],[48,6,48,8],[51,13,51,14],[47,6,47,8],[49,6,49,8],[50,6,50,8],[53,6,53,8],[54,6,54,8],[55,4,55,5],[55,6,55,8],[56,4,56,5],[56,6,56,8],[63,6,63,8],[65,6,65,8],[66,6,66,8],[62,6,62,8],[58,2,58,10],[60,6,60,8],[61,6,61,8],[94,4,94,5],[94,6,94,8],[86,6,86,8],[87,6,87,8],[88,6,88,8],[89,6,89,8],[120,4,120,5],[121,4,121,5],[123,2,123,10],[114,6,114,8],[115,6,115,8],[117,6,117,8],[91,6,91,8],[92,6,92,8],[93,6,93,8],[112,6,112,8],[120,6,120,8],[121,6,121,8],[95,4,95,5],[95,6,95,8],[97,2,97,10],[99,6,99,8],[100,6,100,8],[101,6,101,8],[132,6,132,8],[133,4,133,5],[133,6,133,8],[125,6,125,8],[126,6,126,8],[127,6,127,8],[128,6,128,8],[130,6,130,8],[131,6,131,8],[134,6,134,8],[134,4,134,5],[136,2,136,10],[138,6,138,8],[139,6,139,8],[140,6,140,8],[141,6,141,8],[146,4,146,5],[146,6,146,8],[147,4,147,5],[147,6,147,8],[143,6,143,8],[144,6,144,8],[145,6,145,8],[149,2,149,10],[151,6,151,8],[152,6,152,8],[160,4,160,5],[160,6,160,8],[153,6,153,8],[154,6,154,8],[156,6,156,8],[157,6,157,8],[158,6,158,8],[159,4,159,5],[159,6,159,8],[164,6,164,8],[162,2,162,10],[165,6,165,8],[166,6,166,8],[167,6,167,8],[169,6,169,8],[176,2,176,10],[177,2,177,7],[178,2,178,7],[170,6,170,8],[171,6,171,8],[172,4,172,5],[172,6,172,8],[173,4,173,5],[173,6,173,8],[186,3,186,8],[186,9,186,10],[187,3,187,8],[187,9,187,10],[180,2,180,5],[180,6,180,7],[180,9,180,10],[183,3,183,8],[183,9,183,10],[184,3,184,8],[184,9,184,10],[185,3,185,8],[185,9,185,10],[182,2,182,10],[203,3,203,10],[39,3,39,10],[40,3,40,10],[194,2,194,10],[195,2,195,10],[196,3,196,10],[197,3,197,10],[212,3,212,10],[214,2,214,10],[191,3,191,8],[191,9,191,10],[192,3,192,8],[192,9,192,10],[198,3,198,10],[199,3,199,10],[200,3,200,10],[201,3,201,10],[202,3,202,10],[189,3,189,8],[189,9,189,10],[190,3,190,8],[190,9,190,10],[188,3,188,8],[188,9,188,10],[215,3,215,10],[209,3,209,10],[210,3,210,10],[211,3,211,10],[204,3,204,10],[205,3,205,10],[207,2,207,10],[208,3,208,10],[224,6,224,7],[224,8,224,9],[225,6,225,7],[225,8,225,9],[226,6,226,7],[227,6,227,7],[227,8,227,9],[217,2,217,10],[219,2,219,10],[221,6,221,7],[222,6,222,7],[223,6,223,7],[236,2,237,4],[236,5,237,10],[247,2,247,10],[248,3,248,10],[249,3,249,10],[229,2,229,10],[230,2,231,4],[230,5,231,10],[232,2,233,4],[232,5,233,10],[234,2,235,4],[234,5,235,10],[239,2,239,10],[261,2,261,4],[262,2,262,4],[264,8,264,10],[250,3,250,10],[251,3,251,10],[253,2,253,10],[254,2,254,10],[255,2,255,10],[256,2,256,10]]}
[]
[]
[]
[null,null,"COTIZACIÓN DE VEHÍCULO PESADO"]
[]
[]
[]
[null,null,"INFORMACION DEL ASEGURADO"]
[null,null,"Asegurado:"]
[null,null,"Agente:"]
[null,null,"Vigencia:",null,365,"días, inicio de vigencia por confirmar.",null,null,"Fecha:",{"$f":"TODAY()","v":"2019-07-11"}]
[]
[null,null,"OBJETO DEL SEGURO"]
[null,null,"Este seguro cubre al (a los) vehículo (s) asegurado (s) de los daños o pérdidas materiales, a consecuencia de cualquiera de los riesgos nombrados en las Condiciones Generales, en forma tal que exijan su reparación o reposición, en función de los términos y condiciones del mismo."]
[]
[null,null,"COBERTURAS"]
[null,null,"Pérdidas Totales, en Ecuador, Colombia y Perú, a consecuencia de:"]
[null,null,"•  ","Accidentes de tránsito o circulación: Hecho súbito, imprevisto e independiente a la voluntad del asegurado"]
[null,null,"•  ","Asalto, hurto, robo o tentativa de éstos;"]
[null,null,"•  ","Actos malintencionados de terceros;"]
[null,null,"•  ","Incendio y/o Explosión"]
[null,null,"•  ","Temblor, terremoto, erupción volcánica"]
[null,null,"•  ","Otros eventos de la naturaleza"]
[null,null,"•  ","Caída y/o golpes de objetos extraños"]
[null,null,"•  ","Traslado del vehículo en grúas y gabarras"]
[]
[null,null,"COBERTURAS ADICIONALES"]
[null,null,"Detalle de Cobertura",null,null,null,null,null,null,"Límite Asegurado"]
[null,null,"•  ","Responsabilidad Civil (Límite Único Combinado y Agregado Anual)",null,null,null,null,null,30000]
[null,null,"•  ","Accidentes Personales (para ocupantes del vehículo, máximo 3 personas)"]
[null,null,null,"•   Muerte e invalidez permanente (por persona)",null,null,null,null,null,10000]
[null,null,null,"•   Gastos Médicos por accidente (por persona)",null,null,null,null,null,2500]
[null,null,"•  ","Gastos en defensa de juicio",null,null,null,null,null,2000]
[null,null,"* Según constan en las condiciones generales de la póliza."]
[]
[null,null,"DEDUCIBLES"]
[null,null,"•  ","Pérdidas Total por Robo, Asalto y/o Hurto:"]
[null,null,null,"•   15% del valor del siniestro si el vehículo no posee instalado un dispositivo satelital de localización, rastreo y recuperación vehicular."]
[null,null,null,"•   5% del valor del siniestro si el vehículo posee instalado, renovado y en perfecto funcionamiento un dispositivo satelital de localización, rastreo y recuperación vehicular"]
[null,null,"•  ","Pérdida Total por Otros Eventos:"]
[null,null,null,"•   15% del valor del siniestro."]
[]
[null,null,"* Aplican por evento y el que fuere mayor."]
[]
[null,null,"INFORMACIÓN DEL RIESGO"]
[null,null,"CARACTERISTICAS DEL VEHÍCULO"]
[null,null,null,"ITEM: 1 ","TIPO:*"]
[null,null,null,null,"MARCA:"]
[null,null,null,null,"MODELO:"]
[null,null,null,null,"AÑO:*"]
[null,null,null,null,"PLACA:"]
[null,null,null,null,"VALOR ASEGURADO:"]
[null,null,null,null,"Casco del Vehículo:*"]
[null,null,null,null,"Accesorios de Audio"]
[null,null,null,null,"Accesorios Extras"]
[null,null,null,null,"VALOR ASEGURADO TOTAL: ",null,{"$f":"SUM(G53:I55)","v":0},null,null,"Tasa:",2.5000000000000001E-2]
[null,null,null,null,"PRIMA NETA",null,{"$f":"IF(SUM(N58:N60)<=5,\"\",G56*K56/365*$E$11)","v":""}]
[null,null,null,null,null,null,null,null,null,null,null,null,null,"Heavy Truck"]
[null,null,"CARACTERISTICAS DEL VEHÍCULO",null,null,null,null,null,null,null,null,null,null,"Light Truck"]
[null,null,null,"ITEM: 2 ","TIPO:*"]
[null,null,null,null,"MARCA:"]
[null,null,null,null,"MODELO:"]
[null,null,null,null,"AÑO:*"]
[null,null,null,null,"PLACA:"]
[null,null,null,null,"VALOR ASEGURADO:"]
[null,null,null,null,"Casco del Vehículo:*"]
[null,null,null,null,"Accesorios de Audio"]
[null,null,null,null,"Accesorios Extras"]
[null,null,null,null,"VALOR ASEGURADO TOTAL: ",null,{"$f":"SUM(G66:I68)","v":0},null,null,"Tasa:",2.5000000000000001E-2]
[null,null,null,null,"PRIMA NETA",null,{"$f":"IF(SUM(N71:N73)<=5,\"\",G69*K69/365*$E$11)","v":""}]
[]
[null,null,"CARACTERISTICAS DEL VEHÍCULO"]
[null,null,null,"ITEM: 3 ","TIPO:*"]
[null,null,null,null,"MARCA:"]
[null,null,null,null,"MODELO:"]
[null,null,null,null,"AÑO:*"]
[null,null,null,null,"PLACA:"]
[null,null,null,null,"VALOR ASEGURADO:"]
[null,null,null,null,"Casco del Vehículo:*"]
[null,null,null,null,"Accesorios de Audio"]
[null,null,null,null,"Accesorios Extras"]
[null,null,null,null,"VALOR ASEGURADO TOTAL: ",null,{"$f":"SUM(G79:I81)","v":0},null,null,"Tasa:",2.5000000000000001E-2]
[null,null,null,null,"PRIMA NETA",null,{"$f":"IF(SUM(N84:N86)<=5,\"\",G82*K82/365*$E$11)","v":""}]
[]
[null,null,"CARACTERISTICAS DEL VEHÍCULO"]
[null,null,null,"ITEM: 4 ","TIPO:*"]
[null,null,null,null,"MARCA:"]
[null,null,null,null,"MODELO:"]
[null,null,null,null,"AÑO:*"]
[null,null,null,null,"PLACA:"]
[null,null,null,null,"VALOR ASEGURADO:"]
[null,null,null,null,"Casco del Vehículo:*"]
[null,null,null,null,"Accesorios de Audio"]
[null,null,null,null,"Accesorios Extras"]
[null,null,null,null,"VALOR ASEGURADO TOTAL: ",null,{"$f":"SUM(G92:I94)","v":0},null,null,"Tasa:",2.5000000000000001E-2]
[null,null,null,null,"PRIMA NETA",null,{"$f":"IF(SUM(N97:N99)<=5,\"\",G95*K95/365*$E$11)","v":""}]
[]
[null,null,"CARACTERISTICAS DEL VEHÍCULO"]
[null,null,null,"ITEM: 5 ","TIPO:*"]
[null,null,null,null,"MARCA:"]
[null,null,null,null,"MODELO:"]
[null,null,null,null,"AÑO:*"]
[null,null,null,null,"PLACA:"]
[null,null,null,null,"VALOR ASEGURADO:"]
[null,null,null,null,"Casco del Vehículo:*"]
[null,null,null,null,"Accesorios de Audio"]
[null,null,null,null,"Accesorios Extras"]
[null,null,null,null,"VALOR ASEGURADO TOTAL: ",null,{"$f":"SUM(G105:I107)","v":0},null,null,"Tasa:",2.5000000000000001E-2]
[null,null,null,null,"PRIMA NETA",null,{"$f":"IF(SUM(N110:N112)<=5,\"\",G108*K108/365*$E$11)","v":""}]
[]
[null,null,"CARACTERISTICAS DEL VEHÍCULO"]
[null,null,null,"ITEM: 6 ","TIPO:*"]
[null,null,null,null,"MARCA:"]
[null,null,null,null,"MODELO:"]
[null,null,null,null,"AÑO:*"]
[null,null,null,null,"PLACA:"]
[null,null,null,null,"VALOR ASEGURADO:"]
[null,null,null,null,"Casco del Vehículo:*"]
[null,null,null,null,"Accesorios de Audio"]
[null,null,null,null,"Accesorios Extras"]
[null,null,null,null,"VALOR ASEGURADO TOTAL: ",null,{"$f":"SUM(G118:I120)","v":0},null,null,"Tasa:",2.5000000000000001E-2]
[null,null,null,null,"PRIMA NETA",null,{"$f":"IF(SUM(N123:N125)<=5,\"\",G121*K121/365*$E$11)","v":""}]
[]
[null,null,"CARACTERISTICAS DEL VEHÍCULO"]
[null,null,null,"ITEM: 7 ","TIPO:*"]
[null,null,null,null,"MARCA:"]
[null,null,null,null,"MODELO:"]
[null,null,null,null,"AÑO:*"]
[null,null,null,null,"PLACA:"]
[null,null,null,null,"VALOR ASEGURADO:"]
[null,null,null,null,"Casco del Vehículo:*"]
[null,null,null,null,"Accesorios de Audio"]
[null,null,null,null,"Accesorios Extras"]
[null,null,null,null,"VALOR ASEGURADO TOTAL: ",null,{"$f":"SUM(G131:I133)","v":0},null,null,"Tasa:",2.5000000000000001E-2]
[null,null,null,null,"PRIMA NETA",null,{"$f":"IF(SUM(N136:N138)<=5,\"\",G134*K134/365*$E$11)","v":""}]
[]
[null,null,"CARACTERISTICAS DEL VEHÍCULO"]
[null,null,null,"ITEM: 8 ","TIPO:*"]
[null,null,null,null,"MARCA:"]
[null,null,null,null,"MODELO:"]
[null,null,null,null,"AÑO:*"]
[null,null,null,null,"PLACA:"]
[null,null,null,null,"VALOR ASEGURADO:"]
[null,null,null,null,"Casco del Vehículo:*"]
[null,null,null,null,"Accesorios de Audio"]
[null,null,null,null,"Accesorios Extras"]
[null,null,null,null,"VALOR ASEGURADO TOTAL: ",null,{"$f":"SUM(G144:I146)","v":0},null,null,"Tasa:",2.5000000000000001E-2]
[null,null,null,null,"PRIMA NETA",null,{"$f":"IF(SUM(N149:N151)<=5,\"\",G147*K147/365*$E$11)","v":""}]
[]
[null,null,"CARACTERISTICAS DEL VEHÍCULO"]
[null,null,null,"ITEM: 9 ","TIPO:*"]
[null,null,null,null,"MARCA:"]
[null,null,null,null,"MODELO:"]
[null,null,null,null,"AÑO:*"]
[null,null,null,null,"PLACA:"]
[null,null,null,null,"VALOR ASEGURADO:"]
[null,null,null,null,"Casco del Vehículo:*"]
[null,null,null,null,"Accesorios de Audio"]
[null,null,null,null,"Accesorios Extras"]
[null,null,null,null,"VALOR ASEGURADO TOTAL: ",null,{"$f":"SUM(G157:I159)","v":0},null,null,"Tasa:",2.5000000000000001E-2]
[null,null,null,null,"PRIMA NETA",null,{"$f":"IF(SUM(N162:N164)<=5,\"\",G160*K160/365*$E$11)","v":""}]
[]
[null,null,"CARACTERISTICAS DEL VEHÍCULO"]
[null,null,null,"ITEM: 10","TIPO:*"]
[null,null,null,null,"MARCA:"]
[null,null,null,null,"MODELO:"]
[null,null,null,null,"AÑO:*"]
[null,null,null,null,"PLACA:"]
[null,null,null,null,"VALOR ASEGURADO:"]
[null,null,null,null,"Casco del Vehículo:*"]
[null,null,null,null,"Accesorios de Audio"]
[null,null,null,null,"Accesorios Extras"]
[null,null,null,null,"VALOR ASEGURADO TOTAL: ",null,{"$f":"SUM(G170:I172)","v":0},null,null,"Tasa:",2.5000000000000001E-2]
[null,null,null,null,"PRIMA NETA",null,{"$f":"IF(SUM(N175:N178)<=5,\"\",G173*K173/365*$E$11)","v":""}]
[]
[]
[null,null,"CUADRO DE COSTO"]
[null,null,"Bienes Asegurados:",null,null,null,null,null,"Suma Asegurada ","Tasa","Prima Neta"]
[null,null,"Vehículos según detalle adjunto. ",null,null,null,null,null,{"$f":"SUM(G56,G66,G79,G92,G105,G118,G131,G144,G157,G170)","v":0},2.5000000000000001E-2,{"$f":"I179*J179/365*E11","v":0}]
[]
[null,null,"Subtotal",null,null,null,{"$f":"IF(J181=100,\"*Prima Mínima*\",\"\")","v":"*Prima Mínima*"},null,{"$f":"I179","v":0},{"$f":"IF(K179<100,100,K179)","v":100},null,100]
[]
[null,null,"CLÁUSULAS ADICIONALES"]
[null,null,"•  ","Cláusula de Pago de Primas para Cuota Inicial","Cláusula de Pago de Primas para Cuota Inicial","Cláusula de Pago de Primas para Cuota Inicial","Cláusula de Pago de Primas para Cuota Inicial","Cláusula de Pago de Primas para Cuota Inicial","Cláusula de Pago de Primas para Cuota Inicial","15 días"]
[null,null,"•  ","Cláusula de Aviso de Siniestro","Cláusula de Notificación de Siniestro","Cláusula de Notificación de Siniestro","Cláusula de Notificación de Siniestro","Cláusula de Notificación de Siniestro","Cláusula de Notificación de Siniestro","8 días"]
[null,null,"•  ","Cláusula de Cancelación de Póliza","Cláusula de Cancelación de Póliza","Cláusula de Cancelación de Póliza","Cláusula de Cancelación de Póliza","Cláusula de Cancelación de Póliza","Cláusula de Cancelación de Póliza","30 dias"]
[null,null,"•  ","Cláusula de Ajustadores, Liquidadores y Peritos","Cláusula de Ajustadores, Liquidadores y Peritos","Cláusula de Ajustadores, Liquidadores y Peritos","Cláusula de Ajustadores, Liquidadores y Peritos","Cláusula de Ajustadores, Liquidadores y Peritos","Cláusula de Ajustadores, Liquidadores y Peritos"]
[null,null,"•  ","Cláusula de Amparo Automático de Nuevas Unidades","Cláusula de Amparo Automático de Nuevas Unidades","Cláusula de Amparo Automático de Nuevas Unidades","Cláusula de Amparo Automático de Nuevas Unidades","Cláusula de Amparo Automático de Nuevas Unidades","Cláusula de Amparo Automático de Nuevas Unidades","15 días para reportar"]
[null,null,"•  ","Cláusula de Cobertura de Caída de Puentes, Árboles, Edificios, Aeronaves, Rocas o partes de Ellos","Cláusula de Cobertura de Caída de Puentes, Árboles, Edificios, Aeronaves, Rocas O Partes de Ellos","Cláusula de Cobertura de Caída de Puentes, Árboles, Edificios, Aeronaves, Rocas O Partes de Ellos","Cláusula de Cobertura de Caída de Puentes, Árboles, Edificios, Aeronaves, Rocas O Partes de Ellos","Cláusula de Cobertura de Caída de Puentes, Árboles, Edificios, Aeronaves, Rocas O Partes de Ellos","Cláusula de Cobertura de Caída de Puentes, Árboles, Edificios, Aeronaves, Rocas O Partes de Ellos"]
[null,null,"•  ","Cláusula de Cobertura de Caminos Vecinales y Vías no Oficialmente Entregadas al Público","Cláusula de Cobertura de Caminos Vecinales y Vías No Oficialmente Entregadas al Público","Cláusula de Cobertura de Caminos Vecinales y Vías No Oficialmente Entregadas al Público","Cláusula de Cobertura de Caminos Vecinales y Vías No Oficialmente Entregadas al Público","Cláusula de Cobertura de Caminos Vecinales y Vías No Oficialmente Entregadas al Público","Cláusula de Cobertura de Caminos Vecinales y Vías No Oficialmente Entregadas al Público"]
[null,null,"•  ","Cláusula de Motín, Huelgas y Actos de Vandalismo","Cláusula de Motín, Huelgas y Actos de Vandalismo","Cláusula de Motín, Huelgas y Actos de Vandalismo","Cláusula de Motín, Huelgas y Actos de Vandalismo","Cláusula de Motín, Huelgas y Actos de Vandalismo","Cláusula de Motín, Huelgas y Actos de Vandalismo"]
[null,null,"•  ","Cláusula de Primera Opción de Compra","Cláusula de Primera Opción de Compra","Cláusula de Primera Opción de Compra","Cláusula de Primera Opción de Compra","Cláusula de Primera Opción de Compra","Cláusula de Primera Opción de Compra"]
[null,null,"•  ","Cláusula de No Cancelación Individual","Cláusula de Responsabilidad Civil de Vehículos No Propios","Cláusula de Responsabilidad Civil de Vehículos No Propios","Cláusula de Responsabilidad Civil de Vehículos No Propios","Cláusula de Responsabilidad Civil de Vehículos No Propios","Cláusula de Responsabilidad Civil de Vehículos No Propios"]
[]
[null,null,"EXCLUSIONES"]
[null,null,"Adicional a las exclusiones de las condiciones generales se excluye:"]
[null,null,"•  ","Tanqueros de gas, gasolina y otros derivados de petróleo."]
[null,null,"•  ","Vehículos que transporten cualquier tipo de mercadería azarosa "]
[null,null,"•  ","Vehículos de transporte público de pasajeros"]
[null,null,"•  ","Lucro cesante."]
[null,null,"•  ","Obligaciones financieras."]
[null,null,"•  ","Par y Juego."]
[null,null,"•  ","Daños a la carga transportada."]
[null,null,"•  ","Rotura y/o daños a partes y piezas producto de la operación de descarga en volquetas, o de cualquier otro dispositivo o aparejo montado sobre el vehículo asegurado."]
[null,null,"•  ","Vehículos de uso de público."]
[null,null,"•  ","Equipos desmontables o no empotrados de audio y/o video; radios de comunicación; teléfonos; tabletas electrónicas de cualquier marca; alarma; tuercas de seguridad; tranca palanca; dispositivo satelital de localización, rastreo y ubicación vehicular."]
[]
[null,null,"NOTAS ACLARATORIAS "]
[null,null,"•  ","La Cobertura de AIRBAG del vehículo asegurados es del 100%, siempre y cuando sea a consecuencia de un siniestro amparado por la póliza, indemnización que se suma al valor del siniestro a efectos de aplicar el deducible de la póliza."]
[null,null,"•  ","Se amplía el límite de circulación para los vehículos asegurados, en los países vecinos de Colombia y Perú, conforme lo establecido en las condiciones generales."]
[null,null,"•  ","Las coberturas de Accidentes Personales y Responsabilidad Civil serán indemnizadas en exceso del SPPAT."]
[null,null,"•  ","No se encuentran amparados los eventos que se produzcan como consecuencia de la conducción del vehículo por parte de personas que se encuentren bajo la influencia de alcohol o drogas."]
[null,null,"•  ","No se encuentran amparados los eventos que se produzcan como consecuencia de la conducción del vehículos por parte de personas que no posean licencia de conducir."]
[]
[null,null,"OBLIGACIONES DEL ASEGURADO"]
[null,null,"•  ","El Asegurado se obliga a matricular a su nombre el vehículo asegurado en un plazo de treinta (30) días a partir del inicio de vigencia de la póliza, constituyendo la matrícula requisito indispensable para la atención de cualquier reclamo. En caso de incumplimiento, se suspenderá el proceso de indemnización hasta la presentación de la misma, salvo que el Asegurado presente certificación, y documentación emitidos por la Autoridad Competente, para la justificación de dicho incumplimiento."]
[]
[null,null,"El incumplimiento total o parcial de las obligaciones citadas, libera a la compañía de seguros de todo responsabilidad en caso de siniestro."]
[]
[null,null,"COSTO DEL SEGURO"]
[]
[null,null," ",null,null,"Prima",{"$f":"J181","v":100},{"$f":"[1]ROBO!CV162","v":0}]
[null,null,null,null,null,"Otros Sin IVA"]
[null,null,null,null,null,"S.C.V.S.                               3.5%",{"$f":"G222*3.5%","v":3.5000000000000004},{"$f":"H222*3.5%","v":0}]
[null,null,null,null,null,"S.S.C.                                  0.5%",{"$f":"G222*0.5%","v":0.5},{"$f":"H222*0.5%","v":0}]
[null,null,null,null,null,"D. de Emisión",{"$f":"IF(G222=0,0,IF(G222>0,IF(G222<=250,0.5,IF(G222>250,IF(G222<=500,1,IF(G222>500,IF(G222<=1000,3,IF(G222>1000,IF(G222<=2000,5,IF(G222>2000,IF(G222<=4000,7,IF(G222>4000,9,0))))))))))))","v":0.5},{"$f":"IF(H222=0,0,IF(H222>0,IF(H222<=250,0.5,IF(H222>250,IF(H222<=500,1,IF(H222>500,IF(H222<=1000,3,IF(H222>1000,IF(H222<=2000,5,IF(H222>2000,IF(H222<=4000,7,IF(H222>4000,9,0))))))))))))","v":0}]
[null,null,null,null,null,"I.V.A.                                    12%",{"$f":"SUM(G224,G222,G225,G226)*12%","v":12.54},{"$f":"SUM(H226,H222)*12%","v":0}]
[null,null,null,null,null,"Total",{"$f":"SUM(G222:H227)","v":117.03999999999999},{"$f":"SUM(H222:H227)","v":0}]
[]
[null,null,"FORMA DE PAGO"]
[null,null,"Contado"]
[]
[null,null,"Debito Bancario",null,null,"* 3 meses, Prima Mínima US$150                                  * 9 meses, Prima Mínima US$450\n* 6 meses, Prima Mínima US$300                                  *12 meses, Prima Mínima US$600\n"]
[]
[null,null,"Tarjeta de Crédito",null,null,"* 3, 6, 9 meses sin intereses, sin prima mínima           *12 meses sin intereses, prima Mínima US$600 \n* 3, 6, 9, 12 con intereses, sin prima Mínima\n"]
[]
[null,null,"Cuotas",null,null,"* 2 a 12  meses sin intereses\n Prima Mínima US$600\n"]
[]
[]
[null,null,"                                                                                                                            Realiza tus pagos de manera más efectiva con nuestro "]
[]
[]
[]
[]
[]
[]
[]
[null,null,"DOCUMENTOS REQUERIDOS PARA LA EMISION"]
[null,null,"•  ","Formulario de Vinculación \"Conozca a su cliente\" (Natural o Jurídico) y documentos detallados en el mismo."]
[null,null,"•  ","Copia de Matrícula(s) del(los) vehículo(s). "]
[null,null,"•  ","Informe de Inspección favorable."]
[null,null,"•  ","En caso que el(los) vehículo(s) sea(n) nuevo(s), se deberá presentar la(s) factura(s) de compra(s)."]
[]
[null,null,"Importante: Esta cotización está basada estrictamente en que no haya cambios materiales en el riesgo, o la información provista para el análisis del riesgo, entre la fecha de esta oferta y la fecha de inicio de vigencia del seguro.   En el supuesto de que hubiese algún cambio material, (el término material será definido a la discreción exclusiva de la aseguradora) esta oferta de seguro podrá ser modificada y / o retirada.  "]
[null,null,"Esta cotización tiene validez por quince (15) días."]
[]
[null,null,"Atentamente,"]
[]
[]
[]
[]
[null,null,{"$f":"E10","v":0}]
[null,null,"Oriente Seguros S.A."]
[null,null,"Elaborado por : Cotizador VH Oriente Seguros"]